bitfinex-derivatives/quotes_SOLF0:USTF0_20241127
["timestamp","ask_amount","ask_price","bid_price","bid_amount"]
[1732707865252,10.42341043,235.07,234.95,1.06411431]
[1732707865557,10.42341043,235.07,234.92,6.285821]
[1732707865558,10.42341043,235.07,234.96,2.2]
[1732707869154,10.42341043,235.07,234.91,10.42341043]
[1732707869358,2.2,235.13,234.92,2.2]
[1732707869359,10.42341043,235.04,234.92,2.2]
[1732707869958,10.42341043,235.04,234.93,2.2]
[1732707870161,10.42341043,235.04,234.94,2.2]
[1732707870364,10.42341043,235.04,234.95,2.2]
[1732707870557,10.42341043,235.04,234.96,2.2]
[1732707871261,10.42341043,235.04,234.88,0.36159]
[1732707871462,10.42341043,235.04,234.89,2.2]
[1732707872060,10.42341043,235.04,234.88,0.36159]
[1732707872260,10.42341043,235.04,234.89,2.2]
[1732707872660,10.42341043,235.01,234.88,0.36159]
[1732707872856,10.42341043,235.01,234.89,2.2]
[1732707873358,10.42341043,235.01,234.88,0.36159]
[1732707873664,10.42341043,235.01,234.89,2.2]
[1732707873861,10.42341043,235.01,234.9,2.2]
[1732707874765,10.42341043,235.04,234.9,12.62341043]
[1732707877162,10.42341043,235.07,234.9,12.62341043]
[1732707877569,10.42341043,235.07,234.93,10.42341043]
[1732707878462,10.42341043,235.07,234.9,12.62341043]
[1732707879062,10.42341043,235.07,234.93,10.42341043]
[1732707879664,10.42341043,234.94,234.67,117.79501705]
[1732707879862,10.42341043,234.82,234.68,1.06504155]
[1732707880063,10.42341043,234.86,234.69,2.2]
[1732707880267,10.42341043,234.86,234.65,1.06504155]
[1732707880268,10.42341043,234.86,234.7,2.2]
[1732707880470,10.42341043,234.86,234.71,2.2]
[1732707880669,10.42341043,234.86,234.72,2.2]
[1732707880974,2.2,234.95,234.73,2.2]
[1732707881163,10.42341043,234.88,234.74,2.2]
[1732707881364,9.47258533,234.87,234.75,2.2]
[1732707881570,9.47258533,234.87,234.76,2.2]
[1732707881867,9.47258533,234.87,234.77,2.2]
[1732707882173,10.42341043,234.88,234.78,2.2]
[1732707882467,10.64468309,234.87,234.79,2.2]
[1732707883868,10.64468309,234.87,234.83,0.42991]
[1732707885076,16.71963639,234.95,234.83,0.42991]
[1732707885277,10.63156407,234.94,234.83,0.42991]
[1732707893380,16.71963639,234.95,234.83,0.42991]
[1732707894078,16.71963639,234.99,234.83,0.42991]
[1732707894274,10.60091231,234.98,234.83,0.42991]
[1732707896281,16.71963639,235.03,234.83,0.42991]
[1732707896477,10.60049915,235.02,234.83,0.42991]
[1732707897184,16.71963639,234.99,234.77,16.71963639]
[1732707897374,10.60049915,234.98,234.78,2.2]
[1732707897576,10.60049915,234.98,234.78,4.36531072]
[1732707897981,10.60049915,234.98,234.79,12.77]
[1732707898680,10.60049915,234.98,234.81,16.71963639]
[1732707898884,10.60049915,234.98,234.82,12.77]
[1732707899482,10.60049915,234.97,234.82,12.77]
[1732707899682,16.71963639,235.03,234.82,12.77]
[1732707899683,10.60049915,235.02,234.82,12.77]
[1732707899883,16.71963639,235.03,234.82,12.77]
[1732707900079,16.71963639,235.07,234.85,29.48963639]
[1732707900288,10.60329336,235.01,234.87,12.77]
[1732707900884,16.71963639,235.07,234.87,12.77]
[1732707901083,10.60366045,235.06,234.87,12.77]
[1732707901682,10.60366045,235.06,234.86,12.77]
[1732707901987,10.60366045,235.06,234.87,2.2]
[1732707901988,16.71963639,235.03,234.87,2.2]
[1732707902184,10.60366045,235.02,234.87,2.2]
[1732707903283,10.60366045,235.02,234.88,2.2]
[1732707904487,10.44305117,234.99,234.88,2.2]
[1732707905687,10.44305117,234.96,234.89,2.2]
[1732707905880,10.44305117,234.96,234.9,2.2]
[1732707906084,10.44305117,234.96,234.82,33.22]
[1732707906284,10.44305117,234.96,234.83,2.2]
[1732707906588,10.62387595,234.95,234.83,2.2]
[1732707908591,10.62387595,234.95,234.84,2.2]
[1732707908888,10.44305117,234.93,234.82,33.22]
[1732707909088,10.62387595,234.92,234.83,2.2]
[1732707910988,10.62387595,234.92,234.82,33.22]
[1732707911190,10.62387595,234.92,234.83,2.2]
[1732707911395,10.62387595,234.92,234.78,10.44305117]
[1732707911593,10.44305117,234.9,234.75,10.44305117]
[1732707911788,10.62387595,234.89,234.76,2.2]
[1732707911990,10.44305117,234.87,234.72,10.44305117]
[1732707912187,10.62387595,234.86,234.72,10.44305117]
[1732707912690,10.62387595,234.86,234.66,12.77]
[1732707912691,10.62387595,234.86,234.74,2.2]
[1732707913388,10.62387595,234.86,234.69,10.44305117]
[1732707913389,10.44305117,234.84,234.69,10.44305117]
[1732707913591,10.62387595,234.83,234.74,2.2]
[1732707914286,10.62387595,234.83,234.62,14.47448994]
[1732707914491,10.62387595,234.83,234.74,2.2]
[1732707917892,10.44305117,234.81,234.7,2.2]
[1732707918101,10.62387595,234.8,234.7,2.2]
[1732707918692,10.44305117,234.78,234.7,2.2]
[1732707918891,10.62387595,234.77,234.7,2.2]
[1732707919703,10.44305117,234.81,234.7,2.2]
[1732707919991,10.64668687,234.8,234.7,2.2]
[1732707920193,10.44305117,234.84,234.7,12.64305117]
[1732707920400,10.64447561,234.83,234.7,12.64305117]
[1732707920796,10.64447561,234.86,234.73,10.44305117]
[1732707920995,10.64447561,234.86,234.76,10.44305117]
[1732707921196,10.64447561,234.89,234.77,2.2]
[1732707921602,10.64447561,234.92,234.77,2.2]
[1732707921901,10.44305117,234.9,234.77,2.2]
[1732707922303,10.64447561,234.88,234.77,2.2]
[1732707922499,10.64447561,234.87,234.73,2.07724954]
[1732707922800,10.64447561,234.87,234.74,2.2]
[1732707922993,16.72476589,234.9,234.74,2.2]
[1732707922994,10.64447561,234.86,234.74,2.2]
[1732707923302,10.64447561,234.89,234.74,2.2]
[1732707923895,10.64447561,234.85,234.74,2.2]
[1732707924404,10.64447561,234.88,234.74,2.2]
[1732707924599,10.65599653,234.87,234.74,2.2]
[1732707924798,16.72476589,234.9,234.74,2.2]
[1732707925003,10.65599653,234.89,234.74,2.2]
[1732707926399,10.65599653,234.89,234.75,12.77]
[1732707926703,10.65599653,234.88,234.75,12.77]
[1732707927001,16.72476589,234.96,234.75,12.77]
[1732707927196,10.65980027,234.93,234.75,12.77]
[1732707931403,10.65980027,234.95,234.75,12.77]
[1732707931603,10.65980027,234.94,234.75,12.77]
[1732707931807,10.65980027,234.93,234.75,12.77]
[1732707932002,10.65980027,234.92,234.75,12.77]
[1732707932305,10.65980027,234.91,234.75,12.77]
[1732707932502,10.65980027,234.95,234.78,16.72476589]
[1732707932806,10.66060754,234.94,234.78,16.72476589]
[1732707933108,10.66060754,234.97,234.78,16.72476589]
[1732707933410,10.66060754,234.96,234.75,12.77]
[1732707933707,16.72476589,234.98,234.75,12.77]
[1732707933708,10.66060754,234.95,234.75,12.77]
[1732707934207,10.66060754,234.94,234.75,13.83481024]
[1732707934506,10.66060754,234.97,234.75,13.83481024]
[1732707934702,10.66060754,234.93,234.75,13.83481024]
[1732707934905,10.66060754,234.92,234.75,12.77]
[1732707935602,10.66060754,234.91,234.75,12.77]
[1732707935804,10.66060754,234.9,234.75,12.77]
[1732707936106,10.66060754,234.89,234.75,12.77]
[1732707936301,42.54605138,235.08,234.78,29.49476589]
[1732707936506,16.72476589,235.01,234.82,16.72476589]
[1732707936809,18.74708767,235.0,234.83,2.2]
[1732707937000,18.74708767,234.99,234.83,2.2]
[1732707937205,10.66052565,234.98,234.83,2.2]
[1732707937407,10.66052565,234.97,234.83,2.2]
[1732707937606,10.66052565,235.03,234.83,2.2]
[1732707937804,10.66052565,234.96,234.83,2.2]
[1732707938201,16.72476589,235.04,234.83,2.2]
[1732707938202,10.66052565,235.02,234.83,2.2]
[1732707938407,18.74447687,235.01,234.83,2.2]
[1732707938709,10.66052565,235.0,234.83,2.2]
[1732707939302,10.66052565,234.99,234.83,2.2]
[1732707939506,10.66052565,234.98,234.83,2.2]
[1732707939701,10.66052565,234.97,234.86,16.72476589]
[1732707939915,10.66052565,234.96,234.86,16.72476589]
[1732707940206,16.72476589,235.05,234.86,16.72476589]
[1732707940207,10.66052565,234.95,234.86,16.72476589]
[1732707940406,10.66052565,235.04,234.86,16.72476589]
[1732707940710,18.74299176,235.03,234.87,2.15770197]
[1732707941006,8.08246611,235.02,234.87,2.15770197]
[1732707941207,10.66052565,235.03,234.87,2.15770197]
[1732707941419,10.66052565,235.02,234.87,2.15770197]
[1732707941704,10.66052565,235.01,234.87,2.15770197]
[1732707941910,10.66052565,235.0,234.87,2.15770197]
[1732707942105,10.66052565,235.04,234.87,2.15770197]
[1732707942301,25.82128549,235.08,234.87,12.59842195]
[1732707942302,10.44071998,235.02,234.87,12.59842195]
[1732707942506,10.66052565,235.01,234.87,12.59842195]
[1732707945009,10.66052565,235.01,234.9,10.44071998]
[1732707945209,10.66052565,235.01,234.93,10.44071998]
[1732707945611,10.66052565,235.01,234.96,10.44071998]
[1732707945904,10.44071998,235.11,234.97,2.2]
[1732707946110,10.44071998,235.14,234.99,10.44071998]
[1732707946506,10.64687639,235.13,234.99,10.44071998]
[1732707948011,10.64687639,235.13,235.0,2.2]
[1732707949212,8.06817109,235.12,235.0,2.2]
[1732707949414,10.64687639,235.11,235.0,2.2]
[1732707949711,10.64687639,235.13,235.0,2.2]
[1732707949918,10.64687639,235.12,235.0,2.2]
[1732707950113,10.64687639,235.11,235.02,10.44071998]
[1732707950313,10.64687639,235.1,235.02,10.44071998]
[1732707950715,10.64687639,235.09,235.02,10.44071998]
[1732707950912,10.64687639,235.08,235.02,10.44071998]
[1732707951113,10.64687639,235.07,235.02,10.44071998]
[1732707951315,10.62546231,235.06,235.02,10.44071998]
[1732707951515,10.44071998,235.14,235.02,10.44071998]
[1732707951716,10.62548232,235.13,235.02,10.44071998]
[1732707959221,10.44071998,235.08,234.88,12.77]
[1732707959418,10.62548232,235.07,234.92,10.44071998]
[1732707959715,10.62548232,235.07,234.93,2.2]
[1732707959716,10.44071998,235.05,234.93,2.2]
[1732707959918,10.44071998,235.02,234.86,10.44071998]
[1732707960124,10.44071998,235.02,234.87,2.2]
[1732707961015,10.60470953,235.01,234.87,2.2]
[1732707961218,10.44071998,234.99,234.88,2.2]
[1732707961424,10.60470953,234.98,234.89,2.2]
[1732707961619,10.60470953,234.98,234.9,2.2]
[1732707961823,10.44071998,235.02,234.91,2.2]
[1732707962026,10.61009172,235.01,234.92,2.2]
[1732707962227,10.61009172,235.01,234.93,2.2]
[1732707962527,10.61009172,235.01,234.94,2.2]
[1732707962728,10.61009172,235.01,234.93,2.2]
[1732707964024,10.61009172,235.01,234.89,2.2]
[1732707964025,10.44071998,234.99,234.89,2.2]
[1732707964232,10.61009172,234.98,234.89,2.2]
[1732707967624,10.61009172,235.01,234.89,2.2]
[1732707967822,10.61009172,235.0,234.89,2.2]
[1732707968029,10.61009172,234.99,234.89,2.2]
[1732707968224,10.61009172,234.98,234.89,2.2]
[1732707968425,10.61009172,234.97,234.89,12.64071998]
[1732707968623,10.44071998,235.02,234.89,12.64071998]
[1732707968822,10.64178347,235.01,234.89,12.64071998]
[1732707969029,10.44071998,234.99,234.89,2.2]
[1732707969225,10.64178347,234.98,234.89,2.2]
[1732707971228,10.64178347,234.97,234.89,12.64071998]
[1732707971431,10.64178347,234.96,234.89,12.64071998]
[1732707971632,10.64178347,234.95,234.89,12.64071998]
[1732707971830,10.64178347,234.94,234.89,12.64071998]
[1732707972026,10.44071998,235.02,234.89,12.64071998]
[1732707972231,10.65142246,235.01,234.89,12.64071998]
[1732707972630,10.65142246,235.01,234.89,2.2]
[1732707973133,10.44071998,234.99,234.86,10.44071998]
[1732707973330,10.65142246,234.98,234.78,1.06464277]
[1732707973535,10.65142246,234.98,234.83,10.44071998]
[1732707973732,10.65142246,234.98,234.84,2.2]
[1732707974033,10.44071998,234.96,234.84,2.2]
[1732707974334,2.2,235.0,234.85,2.2]
[1732707974335,10.44071998,234.93,234.85,2.2]
[1732707974734,10.65142246,234.92,234.85,2.2]
[1732707975536,10.65142246,234.91,234.85,2.2]
[1732707975929,10.44071998,234.96,234.85,2.2]
[1732707976435,10.44071998,234.93,234.84,2.2]
[1732707976637,10.65722407,234.92,234.84,2.2]
[1732707977642,10.44071998,234.9,234.75,0.22269]
[1732707977938,10.65722407,234.89,234.77,10.44071998]
[1732707979541,10.44071998,234.84,234.75,0.22269]
[1732707979941,10.44071998,234.78,234.75,0.22269]
[1732707981049,12.64071998,234.78,234.75,0.22269]
[1732707981346,10.64356184,234.77,234.75,0.22269]
[1732707983247,10.64356184,234.77,234.51,1.70497964]
[1732707983541,10.64356184,234.77,234.58,10.44071998]
[1732707983542,10.44071998,234.73,234.58,10.44071998]
[1732707983848,10.44071998,234.73,234.59,2.2]
[1732707985147,10.44071998,234.73,234.58,10.44071998]
[1732707985444,10.44071998,234.73,234.59,2.2]
[1732707986649,23.21071998,234.84,234.55,2.2]
[1732707986650,10.44071998,234.67,234.55,2.2]
[1732707987548,10.44071998,234.67,234.52,10.44071998]
[1732707987549,10.44071998,234.64,234.54,2.2]
[1732707989144,10.44071998,234.64,234.49,2.2]
[1732707989343,10.44071998,234.72,234.49,2.2]
[1732707989344,10.44071998,234.61,234.49,2.2]
[1732707991442,10.44071998,234.61,234.5,2.2]
[1732707992850,10.44071998,234.58,234.5,2.2]
[1732707993148,10.44071998,234.58,234.49,2.2]
[1732707993348,10.44071998,234.58,234.44,10.44071998]
[1732707993349,10.44071998,234.58,234.48,2.2]
[1732707994149,10.44071998,234.61,234.48,2.2]
[1732707994448,10.44071998,234.64,234.48,2.2]
[1732707994848,10.44071998,234.64,234.51,10.44071998]
[1732707995043,10.44071998,234.64,234.48,2.2]
[1732707995044,10.44071998,234.67,234.54,10.44071998]
[1732707995249,10.44071998,234.67,234.55,2.2]
[1732707996849,10.44071998,234.64,234.55,2.2]
[1732707997254,10.44071998,234.61,234.55,2.2]
[1732707999452,10.44071998,234.61,234.51,2.2]
[1732708000351,10.44071998,234.58,234.51,2.2]
[1732708001253,10.44071998,234.52,234.4,2.2]
[1732708002651,10.44071998,234.55,234.41,10.44071998]
[1732708004357,10.44071998,234.58,234.41,10.44071998]
[1732708005151,10.44071998,234.61,234.47,10.44071998]
[1732708005351,10.44071998,234.64,234.5,10.44071998]
[1732708005549,10.44071998,234.67,234.51,2.2]
[1732708005754,10.44071998,234.67,234.53,10.44071998]
[1732708005952,10.44071998,234.7,234.53,10.44071998]
[1732708006361,10.44071998,234.7,234.56,10.44071998]
[1732708006558,10.44071998,234.7,234.57,2.2]
[1732708009065,10.44071998,234.7,234.58,2.2]
[1732708010460,10.44071998,234.7,234.5,1.06585276]
[1732708010659,10.44071998,234.67,234.51,3.26585276]
[1732708010863,10.44071998,234.67,234.51,2.2]
[1732708011564,10.44071998,234.7,234.53,10.44071998]
[1732708011770,10.44071998,234.73,234.56,10.44071998]
[1732708011970,10.44071998,234.73,234.57,2.2]
[1732708013969,10.44071998,234.7,234.57,2.2]
[1732708016272,10.44071998,234.65,234.5,1.70546089]
[1732708016568,10.44071998,234.65,234.51,3.26591545]
[1732708016773,10.44071998,234.65,234.52,1.06591545]
[1732708017076,10.44071998,234.65,234.51,2.2]
[1732708017268,10.44071998,234.65,234.52,2.2]
[1732708017469,10.44071998,234.65,234.53,2.2]
[1732708017470,10.60055187,234.64,234.53,2.2]
[1732708017673,10.60055187,234.64,234.54,2.2]
[1732708017874,10.60055187,234.64,234.55,2.2]
[1732708018074,10.60055187,234.64,234.56,2.2]
[1732708018376,10.60055187,234.64,234.57,2.2]
[1732708018576,10.60055187,234.64,234.58,2.2]
[1732708018769,10.60055187,234.64,234.59,2.2]
[1732708018971,10.60055187,234.69,234.6,2.2]
[1732708019170,10.60055187,234.68,234.61,2.2]
[1732708019369,10.44071998,234.67,234.62,2.2]
[1732708019571,10.44071998,234.67,234.48,10.44071998]
[1732708019572,21.04127185,234.67,234.6,2.2]
[1732708019773,21.04127185,234.67,234.61,2.2]
[1732708019774,10.60055187,234.66,234.61,2.2]
[1732708020375,10.60055187,234.66,234.49,1.06605386]
[1732708020575,10.60055187,234.66,234.5,2.2]
[1732708020576,10.44071998,234.6,234.5,2.2]
[1732708020776,10.60055187,234.59,234.5,2.2]
[1732708021082,10.44071998,234.57,234.47,0.35784]
[1732708021377,2.2,234.61,234.47,0.35784]
[1732708021378,10.44071998,234.54,234.47,0.35784]
[1732708021776,10.60055187,234.53,234.47,0.35784]
[1732708022480,10.60055187,234.53,234.44,2.2]
[1732708023276,10.44071998,234.45,234.15,23.60093428]
[1732708023477,10.60055187,234.44,234.29,10.44071998]
[1732708023780,10.60055187,234.44,234.3,3.2670498]
[1732708023976,10.60055187,234.44,234.3,2.2]
[1732708025483,10.60055187,234.44,234.32,10.44071998]
[1732708025683,10.60055187,234.43,234.32,10.44071998]
[1732708025883,10.60055187,234.42,234.3,2.2]
[1732708026081,10.60055187,234.41,234.31,10.44071998]
[1732708026378,10.60055187,234.47,234.31,10.44071998]
[1732708026585,10.60055187,234.4,234.31,10.44071998]
[1732708026780,10.60055187,234.39,234.31,10.44071998]
[1732708027086,10.44071998,234.48,234.31,10.44071998]
[1732708027290,10.63760041,234.47,234.31,10.44071998]
[1732708028789,10.63760041,234.47,234.3,2.2]
[1732708028790,10.44071998,234.45,234.3,2.2]
[1732708029089,10.44071998,234.45,234.28,10.44071998]
[1732708029090,10.63760041,234.44,234.28,10.44071998]
[1732708029287,10.63760041,234.44,234.29,2.24]
[1732708029488,10.63760041,234.44,234.28,10.44071998]
[1732708029688,10.63760041,234.44,234.29,2.24]
[1732708030285,10.63760041,234.44,234.28,10.44071998]
[1732708030481,10.63760041,234.44,234.29,2.24]
[1732708030682,12.87760041,234.44,234.29,2.24]
[1732708030884,10.63760041,234.43,234.29,2.24]
[1732708031283,10.44071998,234.42,234.29,2.24]
[1732708031483,10.63760041,234.41,234.29,2.24]
[1732708035291,10.63760041,234.41,234.3,2.24]
[1732708036494,10.44071998,234.39,234.23,10.44071998]
[1732708036694,10.44071998,234.39,234.24,2.24]
[1732708036900,10.44071998,234.39,234.16,1.7076701]
[1732708037199,10.44071998,234.39,234.23,10.44071998]
[1732708037399,10.44071998,234.39,234.24,2.24]
[1732708038796,10.44071998,234.39,234.19,1.0673688]
[1732708038997,10.44071998,234.39,234.22,10.44071998]
[1732708039191,10.44071998,234.36,234.23,2.24]
[1732708041404,10.44071998,234.36,234.23,12.68071998]
[1732708042001,10.44071998,234.36,234.23,2.24]
[1732708042196,10.44071998,234.39,234.23,12.68071998]
[1732708044301,10.44071998,234.39,234.23,10.44071998]
[1732708044505,10.44071998,234.39,234.24,2.24]
[1732708046498,10.44071998,234.36,234.24,2.24]
[1732708051709,10.44071998,234.33,234.16,14.88422066]
[1732708052008,10.44071998,234.33,234.17,2.24]
[1732708052801,10.44071998,234.33,234.18,2.24]
[1732708053207,10.44071998,234.33,234.12,14.3638383]
[1732708053208,10.44071998,234.33,234.12,0.52639]
[1732708053512,10.44071998,234.33,234.16,2.24]
[1732708054312,10.44071998,234.33,234.16,12.68071998]
[1732708055610,10.44071998,234.33,234.17,2.24]
[1732708055611,10.57381615,234.32,234.17,2.24]
[1732708056013,10.44071998,234.3,234.17,2.24]
[1732708056509,10.44071998,234.3,234.18,2.24]
[1732708059312,2.2,234.37,234.2,10.44071998]
[1732708059512,21.03974266,234.36,234.23,10.44071998]
[1732708059706,10.59902268,234.35,234.24,2.2]
[1732708062012,10.44071998,234.33,234.24,2.2]
[1732708062212,10.59902268,234.32,234.16,10.44071998]
[1732708062411,10.59902268,234.32,234.17,2.2]
[1732708065316,10.59902268,234.32,234.18,1.06762791]
[1732708065520,10.59902268,234.32,234.17,2.2]
[1732708065717,10.59902268,234.32,234.18,1.06762345]
[1732708065916,10.59902268,234.32,234.17,2.2]
[1732708066118,10.59902268,234.32,234.18,1.06761882]
[1732708066319,10.59902268,234.32,234.19,1.06761882]
[1732708066518,10.59902268,234.32,234.17,12.64071998]
[1732708066817,10.59902268,234.32,234.18,1.06762402]
[1732708067019,10.59902268,234.32,234.19,1.06762402]
[1732708067218,10.59902268,234.31,234.17,12.64071998]
[1732708067519,10.59902268,234.3,234.18,1.06765422]
[1732708067720,10.59902268,234.29,234.19,1.06765422]
[1732708067919,10.59902268,234.28,234.17,12.64071998]
[1732708068218,10.59902268,234.27,234.18,1.06767931]
[1732708068417,10.59902268,234.26,234.19,1.06767931]
[1732708068618,10.59902268,234.25,234.2,1.06764524]
[1732708068819,10.44071998,234.33,234.2,10.44071998]
[1732708069022,10.41095474,234.32,234.21,1.06754656]
[1732708069216,10.41095474,234.31,234.22,1.06754656]
[1732708069410,10.41095474,234.3,234.23,3.26754656]
[1732708069611,10.41095474,234.29,234.23,2.2]
[1732708069813,10.41095474,234.35,234.24,1.06750626]
[1732708070016,10.41189771,234.34,234.23,2.2]
[1732708070215,10.41189771,234.35,234.24,1.06748912]
[1732708070518,10.41189771,234.33,234.23,12.64071998]
[1732708070719,10.41189771,234.34,234.25,1.06748912]
[1732708070921,10.44071998,234.36,234.23,12.64071998]
[1732708070922,10.41189771,234.33,234.23,12.64071998]
[1732708071115,10.41189771,234.32,234.24,1.06748156]
[1732708071619,10.41189771,234.31,234.24,1.06748156]
[1732708071818,10.44071998,234.36,234.23,12.64071998]
[1732708071819,10.41189771,234.3,234.23,12.64071998]
[1732708072021,10.44071998,234.36,234.23,12.64071998]
[1732708072217,10.41979026,234.35,234.24,1.06748089]
[1732708072416,10.41979026,234.34,234.25,1.06748089]
[1732708072621,10.41979026,234.33,234.23,12.64071998]
[1732708072822,10.41979026,234.32,234.24,1.06740392]
[1732708073117,10.41979026,234.31,234.25,1.06740392]
[1732708073318,10.41979026,234.38,234.26,1.06740392]
[1732708073518,10.44071998,234.39,234.23,12.64071998]
[1732708073519,10.42200881,234.37,234.23,12.64071998]
[1732708073714,10.42200881,234.36,234.24,1.0673837]
[1732708073913,10.42200881,234.35,234.25,1.0673837]
[1732708074218,10.42200881,234.35,234.23,12.64071998]
[1732708074219,10.42200881,234.34,234.26,1.0673837]
[1732708074518,10.42200881,234.33,234.25,10.44071998]
[1732708074822,10.44071998,234.39,234.26,1.06729465]
[1732708075018,10.42391385,234.38,234.27,1.06729465]
[1732708075317,10.42391385,234.38,234.23,2.2]
[1732708075517,10.42391385,234.38,234.24,1.06735381]
[1732708075724,10.42391385,234.38,234.25,1.06735381]
[1732708075919,10.42391385,234.38,234.23,2.2]
[1732708076115,10.42391385,234.38,234.24,1.06737366]
[1732708076320,10.42391385,234.38,234.25,1.06737366]
[1732708076517,10.42391385,234.38,234.23,2.2]
[1732708076820,8.13590208,234.37,234.23,2.2]
[1732708077014,10.42391385,234.36,234.23,2.2]
[1732708077416,10.42391385,234.38,234.23,2.2]
[1732708077724,18.56118351,234.37,234.23,2.2]
[1732708078022,10.42391385,234.36,234.23,2.2]
[1732708078220,10.42391385,234.35,234.23,2.2]
[1732708078425,10.42391385,234.34,234.23,2.2]
[1732708078623,10.44071998,234.36,234.24,2.2]
[1732708078819,18.5621154,234.35,234.24,2.2]
[1732708079021,10.44071998,234.33,234.17,2.77546766]
[1732708079319,14.97,234.38,234.08,20.90103378]
[1732708079320,10.44071998,234.3,234.18,2.2]
[1732708079631,10.42391385,234.29,234.19,2.2]
[1732708079826,10.42391385,234.29,234.2,2.2]
[1732708080021,10.42391385,234.29,234.13,10.44071998]
[1732708080022,10.42391385,234.29,234.21,2.2]
[1732708080218,10.42391385,234.29,234.22,2.2]
[1732708080420,8.14088592,234.28,234.23,2.2]
[1732708080617,10.42391385,234.29,234.23,2.2]
[1732708081122,10.42391385,234.28,234.23,2.2]
[1732708081623,10.42391385,234.29,234.23,2.2]
[1732708081824,10.42391385,234.28,234.23,2.2]
[1732708082020,10.42391385,234.27,234.23,2.2]
[1732708082219,10.42391385,234.32,234.23,2.2]
[1732708082424,18.56379174,234.31,234.23,2.2]
[1732708082624,10.42391385,234.3,234.23,2.2]
[1732708082923,10.42391385,234.29,234.23,2.2]
[1732708083125,10.42391385,234.28,234.23,2.2]
[1732708083322,10.44071998,234.33,234.23,2.2]
[1732708083323,10.42391385,234.32,234.23,2.2]
[1732708083519,18.56403291,234.31,234.23,2.2]
[1732708083825,18.56403291,234.3,234.23,2.2]
[1732708084028,10.42391385,234.29,234.23,2.2]
[1732708084226,10.42391385,234.28,234.23,2.2]
[1732708084427,10.42391385,234.27,234.23,2.2]
[1732708084623,10.42391385,234.26,234.23,2.2]
[1732708084929,10.44071998,234.33,234.23,2.2]
[1732708085128,18.57480141,234.32,234.23,2.2]
[1732708085325,10.43463562,234.31,234.23,2.2]
[1732708085527,10.43463562,234.3,234.23,2.2]
[1732708085822,10.43463562,234.29,234.23,2.2]
[1732708086130,10.43463562,234.28,234.23,2.2]
[1732708086324,10.44071998,234.33,234.23,2.2]
[1732708086325,10.43463562,234.27,234.23,2.2]
[1732708086524,10.44071998,234.33,234.23,2.2]
[1732708086722,10.434318,234.32,234.23,2.2]
[1732708087627,8.14037444,234.31,234.23,2.2]
[1732708087822,10.434318,234.32,234.23,2.2]
[1732708088027,10.434318,234.3,234.23,2.2]
[1732708088225,10.434318,234.29,234.23,2.2]
[1732708088425,10.434318,234.28,234.23,2.2]
[1732708088626,10.434318,234.27,234.26,6.7205064]
[1732708089229,6.7205064,234.34,234.26,6.7205064]
[1732708089530,10.43512369,234.33,234.26,6.7205064]
[1732708090226,10.43512369,234.33,234.3,6.7205064]
[1732708090526,25.88871374,234.41,234.31,2.2]
[1732708090729,10.43348081,234.4,234.32,2.2]
[1732708090927,10.43348081,234.39,234.33,12.69319372]
[1732708091121,10.43348081,234.38,234.34,2.2]
[1732708091429,10.49319372,234.48,234.34,2.2]
[1732708091629,10.49319372,234.45,234.34,2.2]
[1732708091829,18.56327984,234.44,234.34,2.2]
[1732708092030,18.56339622,234.43,234.34,2.2]
[1732708092230,10.42812938,234.42,234.34,2.2]
[1732708092430,10.42812938,234.41,234.34,2.2]
[1732708092624,10.42812938,234.4,234.34,2.2]
[1732708092828,10.42812938,234.39,234.34,2.2]
[1732708093032,10.42812938,234.38,234.34,2.2]
[1732708093231,10.49319372,234.45,234.34,2.2]
[1732708093534,4.37308297,234.53,234.34,2.2]
[1732708093535,10.49319372,234.42,234.34,2.2]
[1732708093731,18.55185947,234.41,234.34,2.2]
[1732708093932,10.42124103,234.4,234.34,2.2]
[1732708094133,10.42124103,234.39,234.34,2.2]
[1732708094327,10.42124103,234.38,234.34,2.2]
[1732708094525,10.42124103,234.37,234.34,2.2]
[1732708094726,10.49319372,234.42,234.34,2.2]
[1732708094931,10.42006677,234.41,234.34,2.2]